bitfinex/quotes_ETHUSD_20251031
["timestamp","ask_amount","ask_price","bid_price","bid_amount"]
[1761932812202,0.1304,3830.5,3830.4,0.182]
[1761932812502,0.1304,3830.5,3830.4,0.18836191]
[1761932812724,0.1304,3830.5,3830.4,0.091]
[1761932813018,0.4888,3830.5,3830.1,0.012]
[1761932813318,1.43231366,3830.4,3830.1,0.012]
[1761932813613,0.03263366,3830.4,3830.1,0.012]
[1761932814118,1.80916368,3830.7,3830.1,0.012]
[1761932814413,1.39968,3830.5,3830.3,0.091]
[1761932814608,1.39968,3830.5,3830.1,0.012]
[1761932814609,0.52143366,3830.4,3830.1,0.012]
[1761932814783,0.03263366,3830.4,3830.1,0.012]
[1761932815678,1.43231366,3830.4,3830.1,0.012]
[1761932816005,13.72445,3830.3,3830.1,0.012]
[1761932816307,0.52143537,3830.2,3830.1,0.012]
[1761932816804,0.03263537,3830.2,3830.1,0.012]
[1761932817202,2.61057614,3830.6,3830.1,0.012]
[1761932817407,1.39968,3830.4,3830.1,0.012]
[1761932817641,0.03263451,3830.3,3830.1,0.012]
[1761932817906,1.43231451,3830.3,3830.1,0.012]
[1761932818098,0.03263451,3830.3,3830.1,0.012]
[1761932818501,1.43231451,3830.3,3830.1,0.012]
[1761932818808,0.4888,3830.2,3830.1,0.012]
[1761932819494,12.189922,3830.2,3830.1,0.012]
[1761932819697,1.39968,3830.2,3830.1,0.012]
[1761932820005,7.07521772,3830.2,3830.1,0.012]
[1761932820786,4.464388,3830.2,3830.1,0.012]
[1761932821122,4.00822337,3830.2,3830.1,0.012]
[1761932821317,1.39968,3830.2,3830.1,0.012]
[1761932821928,1.43231537,3830.2,3830.1,0.012]
[1761932822133,0.001,3830.8,3830.1,0.103]
[1761932822134,0.03263281,3830.5,3830.1,0.103]
[1761932822291,0.001,3830.8,3830.5,0.091]
[1761932822634,0.001,3830.8,3830.1,2.71387483]
[1761932822635,0.001,3830.8,3830.7,0.091]
[1761932823204,0.001,3830.8,3830.7,0.182]
[1761932823404,0.001,3830.8,3830.7,0.84989331]
[1761932823703,0.1314,3830.8,3830.7,0.182]
[1761932823918,0.001,3830.8,3830.7,2.79248894]
[1761932824101,0.001,3830.8,3830.7,2.79884574]
[1761932825026,0.001,3830.8,3830.7,0.182]
[1761932825212,0.001,3830.8,3830.7,0.86229045]
[1761932825536,0.001,3830.8,3830.7,3.47277939]
[1761932825724,0.001,3830.8,3830.7,3.47913619]
[1761932826239,0.001,3830.8,3830.7,3.88464019]
[1761932827214,0.001,3830.8,3830.7,0.86229045]
[1761932827403,0.001,3830.8,3830.7,2.79248894]
[1761932827608,0.001,3830.8,3830.7,0.182]
[1761932827949,0.001,3830.8,3830.1,0.012]
[1761932828443,12.900065,3830.5,3830.1,0.012]
[1761932828645,1.76438062,3830.4,3830.1,0.012]
[1761932828843,0.0262744,3830.4,3830.1,0.012]
[1761932829052,1.40068,3830.8,3830.1,0.012]
[1761932829053,1.39968,3830.5,3830.1,0.012]
[1761932829258,0.03263366,3830.4,3830.1,0.012]
[1761932829458,0.001,3830.8,3830.2,0.00636532]
[1761932829760,0.001,3830.8,3830.3,0.091]
[1761932831453,0.001,3830.8,3830.7,0.091]
[1761932832356,0.4898,3830.8,3830.1,0.012]
[1761932832518,0.03263111,3830.7,3830.1,0.012]
[1761932833358,0.001,3830.8,3830.2,0.00636301]
[1761932834238,0.001,3830.8,3830.1,0.012]
[1761932834453,7.07227072,3830.2,3830.1,0.012]
[1761932834652,5.161101,3830.2,3830.1,0.012]
[1761932834949,1.39968,3830.2,3830.1,0.012]
[1761932835148,1.43231537,3830.2,3830.1,0.012]
[1761932835350,23.81508409,3830.2,3830.1,0.012]
[1761932835552,31.17123526,3830.2,3830.1,0.012]
[1761932835750,9.25936854,3830.2,3830.1,0.012]
[1761932836051,11.87019826,3830.2,3830.1,0.012]
[1761932836459,13.44444726,3830.2,3830.1,0.012]
[1761932836662,1.88848,3830.2,3830.1,0.012]
[1761932836874,1.39968,3830.2,3830.1,0.012]
[1761932837370,0.001,3830.8,3830.1,0.194]
[1761932837571,0.1304,3830.2,3830.1,0.012]
[1761932838032,0.1304,3830.2,3830.1,0.36540328]
[1761932838235,0.001,3830.8,3830.1,0.103]
[1761932838458,0.1304,3830.4,3830.1,0.103]
[1761932838658,1.39968,3830.6,3830.1,0.012]
[1761932838868,2.61050535,3830.7,3830.1,0.012]
[1761932839073,0.56922211,3830.6,3830.1,0.012]
[1761932839436,0.03263281,3830.5,3830.1,0.012]
[1761932839638,1.40068,3830.8,3830.1,0.012]
[1761932839860,0.03263111,3830.7,3830.1,0.012]
[1761932840060,0.03263196,3830.6,3830.1,0.012]
[1761932840439,0.50293196,3830.6,3830.1,3.892]
[1761932840640,10.715982,3830.5,3830.1,3.892]
[1761932840836,0.4663,3830.2,3830.1,3.892]
[1761932841381,1.39968,3830.2,3830.1,0.012]
[1761932841541,1.86598,3830.2,3830.1,0.012]
[1761932841744,13.213229,3830.2,3830.1,0.012]
[1761932842066,1.39968,3830.2,3830.1,0.012]
[1761932842380,1.89861537,3830.2,3830.1,0.012]
[1761932842577,9.60725909,3830.2,3830.1,0.012]
[1761932842880,6.963794,3830.2,3830.1,0.012]
[1761932843043,6.447259,3830.2,3830.1,0.012]
[1761932843538,6.223259,3830.2,3830.1,0.012]
[1761932843744,12.53697043,3830.2,3830.1,0.012]
[1761932843970,11.91467943,3830.2,3830.1,0.012]
[1761932844156,10.66612443,3830.2,3830.1,0.012]
[1761932844762,32.61096605,3830.0,3829.9,0.001]
[1761932844946,34.0107824,3829.8,3829.7,0.001]
[1761932845145,31.68299858,3829.7,3829.6,0.001]
[1761932845361,34.01091877,3829.6,3828.5,0.001]
[1761932845560,27.49512415,3829.4,3828.5,0.001]
[1761932845762,22.86351815,3829.4,3828.5,0.001]
[1761932845984,23.33381815,3829.4,3828.5,0.001]
[1761932846188,21.99433625,3829.4,3828.5,0.001]
[1761932846351,21.50183525,3829.4,3828.5,0.001]
[1761932846555,22.38523296,3829.4,3828.5,0.001]
[1761932846862,26.66788296,3829.4,3828.5,0.001]
[1761932847065,8.19277086,3829.4,3828.5,0.001]
[1761932847852,21.04302486,3829.4,3828.5,0.001]
[1761932848058,16.67115486,3829.4,3828.5,0.001]
[1761932848383,7.75887986,3829.4,3828.5,0.001]
[1761932848584,8.56358686,3829.4,3828.5,0.001]
[1761932848886,13.94751886,3829.4,3828.5,0.001]
[1761932849187,3.21967771,3829.4,3828.5,0.001]
[1761932849484,4.418161,3829.4,3828.5,0.001]
[1761932849686,1.39968,3829.4,3828.5,0.096]
[1761932849897,1.43232218,3829.4,3828.6,0.00738182]
[1761932850055,0.135,3830.3,3829.3,0.096]
[1761932850250,0.135,3830.3,3829.3,0.001]
[1761932850251,0.6534,3829.4,3829.3,0.001]
[1761932850564,10.89625015,3829.4,3829.3,0.001]
[1761932850777,11.46203015,3829.4,3829.3,0.001]
[1761932850987,7.49568,3829.4,3829.3,0.001]
[1761932851189,9.831773,3829.4,3829.3,0.001]
[1761932851393,2.33628,3829.4,3829.3,0.001]
[1761932851607,1.39968,3829.4,3829.3,0.001]
[1761932852009,0.135,3830.3,3829.3,3.976]
[1761932852310,7.981268,3829.9,3829.3,3.976]
[1761932852603,2.326333,3829.5,3829.3,3.881]
[1761932852907,0.135,3830.3,3829.4,0.00637972]
[1761932853206,8.17276337,3830.2,3829.4,0.095]
[1761932853406,8.140128,3830.2,3829.4,0.095]
[1761932853614,13.80525386,3830.0,3829.3,3.881]
[1761932853779,0.03263792,3829.9,3829.3,3.881]
[1761932853991,0.03263792,3829.9,3829.3,4.2702]
[1761932854193,0.1871,3829.8,3829.3,4.2702]
[1761932854400,0.03263963,3829.7,3829.3,4.2702]
[1761932854594,0.03263963,3829.7,3829.3,3.881]
[1761932854793,1.39968,3829.6,3829.3,3.881]
[1761932855135,1.39968,3829.6,3829.3,0.001]
[1761932855136,0.03264133,3829.5,3829.3,0.001]
[1761932856724,1.39968,3829.4,3829.3,0.001]
[1761932857228,0.40972359,3830.1,3829.3,0.096]
[1761932857522,1.39968,3830.0,3829.4,0.095]
[1761932857716,0.40972359,3830.1,3829.4,0.095]
[1761932858321,0.03263707,3830.0,3829.4,0.095]
[1761932858517,2.64361118,3830.0,3829.4,0.095]
[1761932858720,0.03263707,3830.0,3829.4,0.095]
[1761932859042,2.61105147,3829.9,3829.4,0.095]
[1761932859244,0.1304,3829.4,3829.3,0.001]
[1761932859833,0.1304,3829.4,3829.3,0.096]
[1761932860866,0.1871,3829.9,3829.3,3.976]
[1761932861016,0.03263878,3829.8,3829.3,3.881]
[1761932861346,1.90261878,3829.8,3829.3,3.881]
[1761932861546,0.03263878,3829.8,3829.3,3.881]
[1761932862260,0.03263878,3829.8,3829.3,3.976]
[1761932862427,0.44236072,3830.1,3829.3,3.976]
[1761932862608,4.01071809,3829.9,3829.3,3.881]
[1761932862834,0.03263878,3829.8,3829.3,3.881]
[1761932863040,0.21973878,3829.8,3829.3,3.881]
[1761932863258,0.21973878,3829.8,3829.3,3.976]
[1761932863259,0.03263878,3829.8,3829.3,3.976]
[1761932863485,0.03263878,3829.8,3829.4,0.00637741]
[1761932863784,2.6108124,3830.3,3829.4,0.00637741]
[1761932863949,1.39968,3830.4,3829.5,3.88]
[1761932864277,2.61076907,3830.3,3829.5,3.88]
[1761932864773,7.0544428,3830.5,3829.5,3.88]
[1761932864961,2.61092405,3830.1,3829.5,3.88]
[1761932865289,1.39968,3829.9,3829.5,3.88]
[1761932865583,1.43231878,3829.8,3829.5,3.88]
[1761932865940,0.4663,3829.6,3829.5,3.88]
[1761932866261,2.10522428,3830.4,3829.5,3.88]
[1761932866438,2.96708,3829.9,3829.5,3.88]
[1761932866645,2.96708,3829.9,3829.3,0.001]
[1761932866646,4.22846278,3829.8,3829.4,3.88]
[1761932866854,1.90591878,3829.8,3829.4,3.88]
[1761932867065,0.03263878,3829.8,3829.4,3.88]
[1761932867267,1.39968,3830.1,3829.4,3.88]
[1761932867467,0.03263707,3830.0,3829.4,3.88]
[1761932867774,0.03263451,3830.3,3829.4,4.2787]
[1761932867964,1.39968,3830.2,3829.4,3.88]
[1761932868159,0.03263622,3830.1,3829.5,0.0063734]
[1761932868360,0.03263451,3830.3,3829.5,0.0063734]
[1761932868563,0.001,3830.6,3830.3,0.095]
[1761932868739,0.03363196,3830.6,3829.7,0.10136307]
[1761932868940,0.001,3830.6,3829.8,0.39813631]
[1761932869142,0.001,3830.6,3829.9,2.61739632]
[1761932869340,0.001,3830.6,3829.9,0.10136692]
[1761932869981,0.001,3830.6,3830.5,0.095]
[1761932871578,0.001,3830.6,3830.1,0.00636087]
[1761932871778,0.1304,3830.3,3830.1,0.68954612]
[1761932872001,0.1304,3830.3,3830.1,0.79091237]
[1761932872209,0.1304,3830.3,3830.2,0.095]
[1761932875710,0.1304,3830.3,3830.2,3.975]
[1761932876013,0.1304,3830.3,3830.2,3.88]
[1761932876600,0.6118,3830.3,3830.2,3.88]
[1761932877214,1.0854,3830.3,3830.2,3.88]
[1761932877400,1.11803451,3830.3,3830.2,3.88]
[1761932877601,2.61091461,3830.1,3829.3,3.881]
[1761932877921,1.29244705,3830.3,3829.4,0.00637511]
[1761932878124,0.001,3830.6,3829.4,0.00637511]
[1761932878309,1.39968,3830.2,3829.4,0.00637511]
[1761932878510,2.61071563,3830.4,3829.4,0.00637511]
[1761932878511,1.39968,3830.3,3829.4,0.00637511]
[1761932878713,0.03263537,3830.2,3829.4,0.00637511]
[1761932878885,0.6636,3829.5,3829.3,0.001]
[1761932879085,0.4814,3829.4,3829.3,0.001]
[1761932879289,0.03264133,3829.5,3829.3,0.001]
[1761932879490,4.536331,3830.2,3829.4,0.095]
[1761932879712,1.39968,3829.9,3829.3,0.001]
[1761932879924,0.03263878,3829.8,3829.3,0.001]
[1761932880223,0.21483878,3829.8,3829.3,0.001]
[1761932880425,0.001,3830.8,3829.7,0.095]
[1761932880627,0.001,3830.8,3830.5,0.095]
[1761932881127,0.001,3830.8,3829.5,0.095]
[1761932881332,0.50723025,3830.8,3829.6,0.500504]
[1761932881527,0.50723025,3830.8,3829.7,2.61116611]
[1761932881908,3.11766365,3830.8,3829.7,2.61116611]
[1761932882103,3.11766272,3830.8,3829.6,2.70620338]
[1761932882425,0.50723025,3830.8,3829.9,2.61101237]
[1761932882931,0.4736,3830.7,3829.5,0.537568]
[1761932883129,0.03363196,3830.6,3829.5,0.537568]
[1761932883496,0.03363196,3830.6,3829.5,3.14887134]
[1761932883820,0.03363196,3830.6,3829.7,2.61110794]
[1761932884136,0.001,3830.6,3829.7,2.61117058]
[1761932884332,0.001,3830.6,3829.9,2.61102843]
[1761932884517,0.001,3830.6,3829.8,6.4910885]
[1761932884846,0.001,3830.6,3829.8,3.88]
[1761932885137,0.03363196,3830.6,3829.8,3.88]
[1761932886159,0.001,3830.6,3829.8,3.88]
[1761932886481,0.001,3830.6,3829.9,0.00636659]
[1761932886688,0.001,3830.6,3830.5,2.70562524]
[1761932886855,0.001,3830.6,3830.5,6.68062524]
[1761932887171,0.001,3830.6,3830.5,2.70562524]
[1761932887546,0.001,3830.6,3830.5,2.71198545]
[1761932887776,0.001,3830.6,3830.5,3.645299]
[1761932888473,0.001,3830.6,3830.5,3.740299]
[1761932888836,0.001,3830.6,3830.5,0.93967376]
[1761932889066,0.4824,3830.6,3830.2,3.88]
[1761932889374,0.6118,3830.3,3829.5,0.002]
[1761932889573,0.03263537,3830.2,3829.5,0.002]
[1761932889746,0.1304,3829.6,3829.5,0.002]
[1761932890735,0.1304,3829.6,3829.5,0.097]
[1761932890943,0.1304,3829.6,3829.5,3.36788847]
[1761932891385,0.1304,3829.6,3829.5,0.75658152]
[1761932891673,0.001,3830.6,3829.6,2.61119058]
[1761932891886,0.1304,3829.9,3829.7,0.00636846]
[1761932892087,0.1304,3829.9,3829.5,0.002]
[1761932892390,0.4814,3829.6,3829.5,0.002]
[1761932892757,3.56623877,3829.6,3829.5,0.002]
[1761932893076,1.59421458,3829.6,3829.5,0.002]
[1761932893276,0.955,3829.6,3829.5,0.002]
[1761932893648,0.4814,3829.6,3829.5,0.002]
[1761932894185,0.955,3829.6,3829.5,0.002]
[1761932894953,3.56623877,3829.6,3829.5,0.002]
[1761932895153,0.955,3829.6,3829.5,0.002]
[1761932895863,0.03263963,3829.7,3829.5,0.002]
[1761932896197,0.03263878,3829.8,3829.5,0.002]
[1761932896370,0.49664048,3829.6,3829.5,0.002]
[1761932896570,0.94994048,3829.6,3829.5,0.002]
[1761932897900,0.03264048,3829.6,3829.5,0.002]
[1761932898219,0.03263878,3829.8,3829.5,0.002]
[1761932898873,0.51693878,3829.8,3829.5,0.002]
[1761932900567,0.4975,3829.6,3829.5,0.002]
[1761932900674,0.4975,3829.6,3829.3,0.001]
[1761932900675,41.09256157,3829.6,3829.3,0.001]
[1761932900871,16.68745654,3829.2,3828.9,0.001]
[1761932901110,4.01139615,3828.9,3828.2,0.001]
[1761932901295,19.67607928,3828.3,3828.2,0.001]
[1761932901485,3.59392548,3828.3,3828.2,0.001]
[1761932901681,15.82645048,3828.3,3828.2,0.001]
[1761932901882,18.36894502,3828.3,3828.2,0.001]
[1761932902306,4.99299154,3828.3,3828.2,0.001]
[1761932902512,0.4975,3828.3,3828.2,0.001]
[1761932902806,3.62657704,3828.3,3828.2,0.001]
[1761932903010,0.9818,3828.3,3828.2,0.001]
[1761932903412,9.62350679,3828.3,3828.2,0.001]
[1761932903615,23.37193748,3828.3,3828.2,0.001]
[1761932903917,23.14630402,3828.3,3828.2,0.001]
[1761932904715,24.42560053,3828.3,3828.2,0.001]
[1761932904954,10.90408905,3828.3,3828.2,0.001]
[1761932905154,13.51621453,3828.3,3828.2,0.001]
[1761932905347,10.90408905,3828.3,3828.2,0.001]
[1761932905535,13.51621453,3828.3,3828.2,0.001]
[1761932905730,19.81198653,3828.3,3828.2,0.001]
[1761932906629,21.55864153,3828.3,3828.2,0.001]
[1761932906824,21.14874002,3828.3,3828.2,0.001]
[1761932907129,11.45718302,3828.3,3828.2,0.001]
[1761932907768,18.09388502,3828.3,3828.2,0.001]
[1761932908737,37.60511702,3828.3,3828.2,0.001]
[1761932909257,38.01062102,3828.3,3828.2,0.001]
[1761932909831,38.42055768,3828.3,3828.2,0.001]
[1761932910032,2.61219372,3828.2,3827.8,0.001]
[1761932910231,4.01207844,3827.9,3827.8,0.001]
[1761932910459,41.31537622,3827.9,3827.8,0.001]
[1761932910660,11.76702124,3827.9,3827.8,0.001]
[1761932910858,41.76702124,3827.9,3827.8,0.001]
[1761932911049,42.17252524,3827.9,3827.8,0.001]
[1761932911223,4.14254669,3827.8,3827.7,0.002]
[1761932911425,4.01255625,3827.2,3827.1,0.011]
[1761932911661,11.09419905,3827.2,3827.1,0.011]
[1761932911963,3.28481154,3827.9,3827.1,0.011]
[1761932912123,9.284157,3827.6,3827.1,0.011]
[1761932912327,1.39968,3827.7,3827.1,0.011]
[1761932912328,6.50371989,3827.4,3827.1,0.011]
[1761932912545,10.914014,3827.2,3827.1,0.011]
[1761932912770,11.98174441,3827.2,3827.1,0.011]
[1761932912975,0.4975,3827.2,3827.1,0.011]
[1761932913141,0.03265753,3827.6,3827.1,0.124]
[1761932913461,5.814306,3828.2,3827.1,0.124]
[1761932913623,0.40993666,3828.3,3827.5,0.113]
[1761932913827,0.189,3828.5,3827.6,0.00640581]
[1761932914150,2.617856,3829.2,3828.4,0.113]
[1761932914461,2.309745,3828.8,3827.9,2.6123455]
[1761932914664,0.03264815,3828.7,3828.0,2.61871843]
[1761932914831,0.03264815,3828.7,3828.0,0.52312351]
[1761932915160,0.47570071,3829.3,3828.6,0.113]
[1761932915161,0.0326473,3828.8,3828.6,0.113]
[1761932915364,1.39968,3829.0,3828.6,0.113]
[1761932915588,2.80046002,3829.3,3828.2,0.00639095]
[1761932915589,0.03264645,3828.9,3828.2,0.00639095]
[1761932915729,1.39968,3829.0,3828.2,2.72514744]
[1761932916048,0.03264559,3829.0,3828.3,2.61850436]
[1761932916356,0.03264559,3829.0,3828.2,0.5337466]
[1761932916574,0.4843,3829.5,3828.5,2.61198889]
[1761932916732,0.001,3829.6,3828.9,0.113]
[1761932916733,0.03264218,3829.4,3828.9,0.113]
[1761932917163,0.40982281,3829.3,3828.9,0.113]
[1761932917639,0.03264389,3829.2,3828.3,2.72507535]
[1761932917859,0.4853,3829.6,3828.3,0.38550754]
[1761932918060,0.001,3829.6,3828.7,2.61184165]
[1761932918245,0.03364048,3829.6,3828.4,0.113]
[1761932918455,0.03364048,3829.6,3828.1,0.113]
[1761932918456,4.488964,3829.5,3828.1,0.113]
[1761932918672,14.366317,3829.3,3828.3,2.61210308]
[1761932918836,0.03264389,3829.2,3828.3,2.6121138]
[1761932919039,0.03264389,3829.2,3828.2,2.61219372]
[1761932919364,0.03264389,3829.2,3828.3,0.53375201]
[1761932920185,0.4843,3829.1,3828.0,2.61230827]
[1761932920363,0.03264559,3829.0,3828.0,2.61230827]
[1761932920561,0.03264559,3829.0,3827.7,0.113]
[1761932920761,0.6733,3828.9,3827.9,2.61239844]
[1761932920965,1.39968,3829.2,3828.1,2.61221777]
[1761932921281,0.001,3829.6,3828.2,0.113]
[1761932921478,0.03364048,3829.6,3828.3,0.405504]
[1761932921664,7.891366,3829.4,3828.1,0.405504]
[1761932922008,0.03264304,3829.3,3828.2,2.6121924]
[1761932922310,0.001,3829.2,3827.6,0.002]
[1761932922466,0.001,3829.2,3828.0,2.61227544]
[1761932922664,0.1304,3828.3,3828.0,3.14604965]
[1761932922898,0.1304,3828.3,3828.0,0.53377421]
[1761932923111,0.1304,3828.3,3828.2,2.72519372]
[1761932923477,0.1304,3829.0,3828.6,2.6119191]
[1761932923681,0.1304,3829.0,3828.9,2.61171615]
[1761932923998,0.1304,3829.0,3828.9,2.72471615]
[1761932924157,0.1304,3829.0,3828.9,0.113]
[1761932924562,0.1304,3829.0,3828.9,2.72471615]
[1761932924800,0.1304,3829.0,3828.9,3.38330727]
[1761932925594,0.1304,3829.0,3828.9,0.65859112]
[1761932925798,0.1304,3829.0,3828.9,0.6649786]
[1761932926168,0.1304,3829.0,3828.9,3.27669475]
[1761932926367,0.1304,3829.0,3828.9,0.7779786]
[1761932926582,0.1304,3829.0,3828.9,0.65859112]
[1761932926776,0.1304,3829.0,3828.9,0.113]
[1761932927676,1.0912,3829.0,3828.2,0.113]
[1761932927875,0.1304,3828.5,3828.2,0.113]
[1761932928081,0.1304,3828.5,3828.3,2.61851987]
[1761932928311,0.1304,3828.5,3828.4,0.113]
[1761932930652,0.001,3829.2,3828.7,2.61184634]
[1761932930784,0.1304,3829.0,3828.7,3.14549118]
[1761932931124,0.1304,3829.0,3828.7,0.53369036]
[1761932931329,0.1304,3829.0,3828.9,0.113]
[1761932931510,0.1304,3829.0,3828.9,2.72471615]
[1761932931681,0.1304,3829.0,3828.9,2.83771615]
[1761932931882,0.1304,3829.0,3828.9,3.38330626]
[1761932932104,0.1304,3829.0,3828.9,0.77159011]
[1761932932480,0.1304,3829.0,3828.9,0.113]
[1761932932681,0.6209,3829.0,3828.3,0.1304]
[1761932933218,0.1304,3828.3,3828.2,0.113]
[1761932933432,0.1304,3828.3,3828.2,3.993]
[1761932933599,0.4703,3828.6,3827.6,2.61458937]
[1761932933780,0.03264986,3828.5,3827.7,0.2791615]
[1761932933982,2.81012906,3828.9,3827.8,2.61243313]
[1761932934182,0.88110611,3829.2,3827.9,0.00639838]
[1761932934402,0.03264474,3829.1,3828.2,2.61215211]
[1761932934597,0.91275717,3829.1,3828.2,0.92174823]
[1761932934804,0.91275717,3829.1,3827.9,3.88]
[1761932935033,0.40981243,3829.1,3828.2,2.61218519]
[1761932935250,0.40981243,3829.1,3828.6,2.61187547]
[1761932935416,0.40981243,3829.1,3828.1,0.405504]
[1761932935417,0.40981243,3829.1,3828.7,0.2675769]
[1761932935738,0.40981243,3829.1,3828.7,0.00638935]
[1761932936116,0.40981243,3829.1,3828.7,2.61824046]
[1761932936354,0.40981243,3829.1,3828.7,0.00638935]
[1761932936504,0.40981243,3829.1,3828.4,2.61200663]
[1761932936705,0.40981243,3829.1,3828.5,2.61198474]
[1761932937004,0.40981243,3829.1,3828.3,1.39968]
[1761932937633,0.03264559,3829.0,3828.2,6.49213736]
[1761932937839,0.03264559,3829.0,3828.2,3.88]
[1761932938227,0.03264559,3829.0,3828.3,2.61847196]
[1761932938540,0.40981243,3829.1,3828.4,2.61205134]
[1761932939244,0.001,3829.0,3828.4,2.61205134]
[1761932939539,0.001,3829.0,3828.2,4.79046307]
[1761932939740,0.1984,3828.9,3828.2,3.88]
[1761932940110,0.1984,3828.9,3828.3,3.88]
[1761932940418,0.0326473,3828.8,3828.3,3.88]
[1761932940619,0.4905,3828.4,3828.3,3.88]
[1761932940861,0.1984,3828.9,3828.3,3.88]
[1761932941145,0.1984,3828.9,3828.4,0.0063947]
[1761932941306,0.001,3829.0,3828.3,3.9993931]
[1761932941948,3.28042064,3828.9,3828.3,3.88]
[1761932942123,0.40503517,3828.8,3828.3,3.88]
[1761932942306,0.0326473,3828.8,3828.3,3.88]
[1761932942509,0.5029473,3828.8,3828.3,3.88]
[1761932942710,0.001,3829.0,3828.7,0.113]
[1761932943251,0.001,3829.0,3828.7,2.72484721]
[1761932943411,0.001,3829.0,3828.7,3.2698354]
[1761932943613,0.1304,3828.8,3828.7,0.65798819]
[1761932943922,0.001,3829.0,3828.9,0.113]
[1761932944243,0.001,3829.0,3828.9,0.11938748]
[1761932945446,0.001,3829.0,3828.9,6.61110363]
[1761932945651,0.001,3829.0,3828.9,6.60471615]
[1761932946209,0.001,3829.0,3828.9,3.993]
[1761932946537,0.001,3829.0,3828.9,3.88]
[1761932946918,0.001,3829.0,3828.9,6.60471615]
[1761932947314,0.001,3829.0,3828.9,7.93187155]
[1761932947650,0.001,3829.0,3828.9,8.17527155]
[1761932948169,0.001,3829.0,3828.9,5.56455155]
[1761932948325,0.001,3829.0,3828.9,5.45155155]
[1761932948525,0.001,3829.0,3828.9,0.113]
[1761932948713,0.001,3829.0,3828.9,2.73110363]
[1761932948922,0.001,3829.0,3828.9,3.24960763]
[1761932949226,0.001,3829.0,3828.9,4.64928763]
[1761932950479,0.001,3829.0,3828.9,4.64290015]
[1761932950774,0.001,3829.0,3828.9,5.75637353]
[1761932952540,0.001,3829.6,3829.5,3.01681095]
[1761932952741,0.001,3829.6,3829.5,4.5358682]
[1761932952949,0.001,3829.6,3829.5,4.6488682]
[1761932953273,0.001,3829.6,3829.5,14.8988682]
[1761932953478,0.001,3829.6,3829.5,16.6435221]
[1761932955955,0.001,3830.8,3829.9,3.01653823]
[1761932956275,0.001,3830.8,3830.3,4.41594555]
[1761932956476,0.001,3830.8,3830.3,8.40894555]
[1761932956645,0.001,3830.8,3830.3,10.2722246]
[1761932957267,0.001,3830.8,3830.3,10.1592246]
[1761932957643,0.001,3830.8,3830.3,9.7537206]
[1761932957847,0.001,3830.8,3830.3,10.1592246]
[1761932958047,0.001,3830.8,3830.3,10.4026246]
[1761932958358,0.001,3830.8,3830.3,10.2896246]
[1761932958559,0.001,3830.8,3830.3,7.67886305]
[1761932958769,0.001,3830.8,3830.3,5.41008]
[1761932958770,0.468,3830.7,3830.3,5.41008]
[1761932958971,0.468,3830.7,3830.3,8.42634555]
[1761932959146,0.01,3830.7,3830.3,8.53934555]
[1761932959587,0.01,3830.7,3830.3,5.815584]
[1761932959759,0.01,3830.7,3830.3,8.42634555]
[1761932960481,0.01,3830.7,3830.3,10.28006959]
[1761932961387,0.01,3830.7,3830.3,10.16706959]
[1761932963677,0.001,3830.4,3830.3,8.40894555]
[1761932964769,0.001,3830.4,3830.3,8.52194555]
[1761932965503,0.01,3830.7,3830.3,8.52194555]
[1761932965504,0.01,3830.7,3830.6,4.41574109]
[1761932965665,0.01,3830.7,3830.6,6.65285388]
[1761932966066,0.01,3830.7,3830.6,6.53985388]
[1761932966467,0.01,3830.7,3830.6,3.01606109]
[1761932966904,0.01,3830.7,3830.6,2.61055709]
[1761932966905,0.4986,3830.7,3830.6,2.61055709]
[1761932967202,0.01,3830.7,3830.6,2.72355709]
[1761932967604,0.01,3830.7,3830.6,2.61055709]
[1761932967806,0.01,3830.7,3830.6,4.81658445]
[1761932968315,0.01,3830.7,3830.6,6.21626445]
[1761932969395,0.01,3830.7,3830.6,10.09426445]
[1761932969715,0.01,3830.7,3830.6,8.40674109]
[1761932970068,0.01,3830.7,3830.6,8.51974109]
[1761932970522,0.001,3830.8,3830.7,8.28367294]
[1761932970816,0.001,3830.8,3830.7,10.51975973]
[1761932971786,0.001,3830.8,3830.7,10.40675973]
[1761932972211,0.001,3830.8,3830.7,10.51975973]
[1761932972611,0.001,3830.8,3830.7,10.40675973]
[1761932972794,0.001,3830.8,3830.7,10.53715973]
[1761932973002,0.001,3830.8,3830.7,10.65015973]
[1761932973408,0.001,3830.8,3830.7,10.53715973]
[1761932977014,0.9476,3830.8,3830.7,3.868]
[1761932977610,1.078,3830.8,3830.6,3.868]
[1761932977815,0.458,3830.7,3830.6,3.868]
[1761932977992,0.9466,3830.7,3830.6,3.868]
[1761932978739,0.9466,3830.7,3830.3,3.868]
[1761932979038,0.1314,3830.8,3830.3,3.868]
[1761932979039,0.5884,3830.6,3830.3,3.868]
[1761932979316,0.619,3830.4,3830.3,3.868]
[1761932979546,0.001,3830.8,3830.3,6.86574129]
[1761932979745,0.4886,3830.4,3830.3,6.47874129]
[1761932980046,0.4886,3830.4,3830.3,3.868]
[1761932980221,0.9466,3830.4,3830.3,6.47876155]
[1761932980704,0.9466,3830.4,3830.3,3.868]
[1761932981706,1.077,3830.4,3830.3,3.868]
[1761932983924,0.9466,3830.4,3830.3,3.868]